Cogmind - Beta 16.1 @@@ ROGUE MODE // 2026.03.08 @ 16:38:58 Player: StaticNoob Result: Destroyed by 85-OXE(g) with Beamcaster Performance ------------- Evolutions (0) 0 Regions Visited (3) 600 Robots Destroyed (35) 175 Value Destroyed (1204) 1204 Prototype IDs (28) 560 Alien Tech Used (0) 0 Bonus (780) 780 TOTAL SCORE: 3319 Bonus ------- Registered with UFD 300 Met Optimus in HQ 500 Friendly Fire -20 Cogmind --------- Core Integrity 0/250 Matter 300/300 Energy 180/180 System Corruption 0% Temperature Warning (347) Movement Walking (180) Ox1 Location -8/Scraptown Parts ------- > --- POWER (1) -------- Meta Core > --- PROPULSION (2) --- Assembled Alloy Leg > --- UTILITY (2) ------ High-capacity Storage Unit > --- WEAPON (2) ------- Overtuned Barrage Gun > --- INVENTORY (20) --- Micro Fission Core Overtuned Titanium Leg Overtuned Titanium Leg Scrap Suit Small Battery (100) Medium Matter Pod (100) Experimental Terrain Scanner Terrain Scan Processor Seismic Detector Tower Shield Hacking Suite Makeshift System Shield Rocket Launcher Multitool Powered Hammer DRS Beacon (Ready) Peak State ------------ > --- POWER ------------ Meta Core > --- PROPULSION ------- Titanium Leg Overtuned Titanium Leg Overtuned Titanium Leg > --- UTILITY ---------- Scrap Suit High-capacity Storage Unit > --- WEAPON ----------- Overtuned Pulse Rifle Overtuned Pulse Rifle Powered Hammer > --- INVENTORY -------- Micro Fission Core Overtuned Titanium Leg Overtuned Titanium Leg Assembled Alloy Leg Scrap Suit Small Battery Medium Matter Pod Experimental Terrain Scanner Terrain Scan Processor Seismic Detector Tower Shield Hacking Suite Makeshift System Shield Overtuned Barrage Gun Rocket Launcher Multitool DRS Beacon [Rating: 49] Favorites ----------- Power Light Ion Engine Engine Light Ion Engine Power Core Light Nuclear Core Propulsion Light Treads Treads Light Treads Leg Improved Aluminum Leg Wheel Subdweller Monowheel Utility High-capacity Storage Unit Device Disposable Heat Sink Storage High-capacity Storage Unit Protection Hardened Medium Armor Plating Weapon Subdweller Laser Energy Gun Subdweller Laser Energy Cannon Subdweller Beam Cannon Ballistic Gun Assault Rifle Ballistic Cannon Battle Cannon Launcher Subdweller Shrapnel Launcher Impact Weapon Powered Hammer Slashing Weapon Makeshift Sword Build | -11 -10 -10 -8 ------- Run | Yrd Mat Sub Scr Slots Evolved . | . . . . Power . | . . . . Propulsion . | . . . . Utility . | . . . . Weapon . | . . . . Parts Attached 42 | 7 1 15 19 Power 5 | 1 . 1 3 Engine 2 | 1 . 1 . Core 3 | . . . 3 Reactor . | . . . . Propulsion 11 | 2 . 3 6 Treads 3 | 2 . 1 . Leg 6 | . . . 6 Wheel 2 | . . 2 . Hover . | . . . . Flight . | . . . . Utility 7 | 2 1 1 3 Device 4 | 1 . 1 2 Storage 2 | 1 1 . . Processor . | . . . . Hackware . | . . . . Protection 1 | . . . 1 Artifact . | . . . . Weapon 19 | 2 . 10 7 Energy Gun 5 | . . 3 2 Energy Cannon 1 | . . 1 . Ballistic Gun 8 | 2 . 3 3 Ballistic Cannon 2 | . . 1 1 Launcher 1 | . . 1 . Special Weapon . | . . . . Impact Weapon 1 | . . . 1 Slashing Weapon 1 | . . 1 . Piercing Weapon . | . . . . Special Melee Weapon . | . . . . Unidentified Prototypes . | . . . . Parts Lost 22 | . . 10 12 Power 2 | . . 2 . Propulsion 8 | . . 4 4 Utility 4 | . . 1 3 Weapon 8 | . . 3 5 Highest Loss Streak 6 | . . 6 6 To Critical Strikes . | . . . . Average Backups 15 | . 4 16 16 Power 1 | . 1 1 . Propulsion 1 | . . 1 1 Utility 7 | . 2 7 9 Weapon 4 | . . 5 3 Tool/Special . | . . . . Unused Backups 27 | . . 8 19 Power 2 | . . 1 1 Propulsion 4 | . . 1 3 Utility 14 | . . 2 12 Weapon 6 | . . 4 2 Tool/Special 1 | . . . 1 Average Slot Usage (%) 96 | . 100 99 86 Engine 10 | . 14 13 . Core 2 | . . . 9 Treads 20 | . 28 27 . Leg 4 | . . . 16 Wheel 1 | . . . 5 Device 13 | . 14 13 13 Storage 13 | . 14 14 13 Energy Gun 6 | . . 4 12 Energy Cannon 1 | . . 1 . Ballistic Gun 14 | . 28 14 12 Ballistic Cannon 3 | . . 3 1 Slashing Weapon 2 | . . 3 . Peak Build Rating 49 | 7 7 19 49 Average Rating 16 | 4 7 15 22 On Entrance 7 | . 7 7 15 Avg Prop Armor Cover (%) 9 | . . . 9 Naked Turns . | . . . . Heaviest Build 63 | 13 48 56 63 Greatest Support 55 | 40 40 40 55 Greatest Overweight (x) 4 | . 1 2 4 Average Overweight (x) 1 | . . 1 1 Largest Inventory Capacity 20 | 8 20 20 20 Average Capacity 19 | 6 18 20 20 Most Carried 20 | 1 5 20 20 Average Carried 17 | . 4 17 18 Final Capacity 20 | 8 20 20 20 Final Carried 19 | 1 5 19 18 Scrap Suit Usage (%) 1 | . . . 6 Parts Cannibalized 5 | . . . 5 Class Distribution -------------------- 74% | Mutant 12% | Derelict-Mutant 11% | Scavenger-Mutant Dominant Class ---------------- Mutant | -10/Materials Mutant | -10/Subcaves Derelict-Mutant | -8/Scraptown Resources | -11 -10 -10 -8 ----------- Run | Yrd Mat Sub Scr Matter Collected 1647 | 175 12 768 692 Remotely . | . . . . Salvage Created 1191 | 10 12 660 509 Parts 66 | 4 5 40 17 Haulers Intercepted . | . . . . Recyclers Shooed . | . . . . Parts Field Recycled . | . . . . Retrieved Matter . | . . . . Parts Self-Destructed 8 | . . 8 . Prevented . | . . . . Parts Restored . | . . . . Kills | -11 -10 -10 -8 ------- Run | Yrd Mat Sub Scr Combat Hostiles Destroyed 30 | . . 22 8 Guns 18 | . . 12 6 Cannons 7 | . . 5 2 AOE 5 | . . 5 . Classes Destroyed 10 | 1 1 4 4 Tunneler 1 | 1 . . . Operator 1 | . 1 . . Turret 3 | . . 2 1 Swarmer 6 | . . 6 . Artisan 1 | . . 1 . Subdweller 16 | . . 16 . Explorer 1 | . . . 1 Ranger 2 | . . . 2 Guru 1 | . . . 1 Scrapper 4 | . . . 4 Best Kill Streak 5 | 1 1 5 2 Combat Bots Only 3 | . . 3 2 Max Kills in Single Turn 3 | 1 1 3 1 Gunslinging . | . . . . Exploded 3 | . . 3 . Melee . | . . . . Uniques/NPCs Destroyed . | . . . . Combat | -11 -10 -10 -8 -------- Run | Yrd Mat Sub Scr Hostile Shots Fired 269 | . . 125 144 Missed 70 | . . 37 33 Hits 199 | . . 88 111 Projectile 199 | . . 88 111 Critical Strikes 6 | . . 1 5 Damage Taken 2872 | . . 1421 1451 Core 256 | . . 101 155 Absorbed by Shields 88 | . . . 88 Regen/Repaired (Parts) 39 | . . . 39 Core Remaining (%) 100 | 100 . . . Volleys Fired 116 | 1 1 65 49 Largest 3 | 2 2 2 3 Hottest 190 | 40 40 120 190 Shots Fired 209 | 2 2 114 91 Gun 152 | 2 2 79 69 Cannon 45 | . . 23 22 Launcher 12 | . . 12 . Special . | . . . . Kinetic 166 | 2 2 87 75 Thermal 43 | . . 27 16 Explosive . | . . . . Electromagnetic . | . . . . Robot Hit Streak 30 | 2 1 30 7 Robot Miss Streak 5 | . 1 2 5 Penetration Max 1 | . . . 1 Secondary Targets 1 | . . 1 . Max Gunslinging Chain 1 | . . 1 . Shots Hit Robots 147 | 2 1 93 51 Core Hits 61 | 1 1 43 16 Critical Kills . | . . . . Critical Parts Destroyed 2 | . . . 2 Critical Strikes 4 | . . 1 3 Burn 1 | . . . 1 Destroy 3 | . . 1 2 Melee Attacks 26 | . . 25 1 Impact 1 | . . . 1 Slashing 25 | . . 25 . Piercing . | . . . . Sneak Attacks 1 | . . 1 . Combat Hostiles . | . . . . Follow-up Attacks . | . . . . Damage Inflicted 3469 | 23 15 2514 917 Guns 1751 | 23 15 1120 593 Cannons 732 | . . 408 324 Explosions 912 | . . 912 . Melee 74 | . . 74 . Ramming . | . . . . Kinetic 2738 | 23 15 1976 724 Thermal 657 | . . 464 193 Explosive . | . . . . Electromagnetic . | . . . . Impact . | . . . . Slashing 74 | . . 74 . Piercing . | . . . . Highest Corruption . | . . . . Average Corruption . | . . . . Corruption Purged . | . . . . Corruption Blocked . | . . . . Overload Shots . | . . . . Overflow Damage 39 | . . 39 . Projectiles 24 | . . 24 . Explosions 15 | . . 15 . Melee . | . . . . Knockbacks 3 | . . 1 2 Impact . | . . . . Kinetic 3 | . . 1 2 Secondary . | . . . . Self-Inflicted Damage 41 | . . 41 . Shots 2 | . . 2 . Rammed . | . . . . Targets Rammed . | . . . . Kicked . | . . . . Crushed . | . . . . Highest Temperature 539 | . . 45 539 Average Temperature 123 | . . 16 137 Received Heat Transfer 1144 | . . 423 721 Effects 13 | . . . 13 Shutdowns 2 | . . . 2 Energy Bleed 1 | . . . 1 Interference 1 | . . . 1 Matter Decay 1 | . . . 1 Damage (minor) 1 | . . . 1 Damage (major) 7 | . . . 7 Siege Activations . | . . . . Martial Activations . | . . . . Shielding Activations . | . . . . Robots Disrupted . | . . . . Combat Hostiles . | . . . . Robots Corrupted . | . . . . Combat Hostiles . | . . . . Parts Fried . | . . . . Impact Corruptions . | . . . . Robots Melted . | . . . . Combat Hostiles . | . . . . Parts Melted 4 | . . . 4 Heat Transferred 1045 | . . 573 472 Parts Sabotaged . | . . . . Parts Stolen . | . . . . Parts Stripped . | . . . . Power Chain Reactions . | . . . . Alert | -11 -10 -10 -8 ------- Run | Yrd Mat Sub Scr Maximum Alert Level . | . . . . Low Security (%) 100 | 100 100 . . Level 1 . | . . . . Level 2 . | . . . . Level 3 . | . . . . Level 4 . | . . . . Level 5 . | . . . . High Security . | . . . . Max Security . | . . . . Peak Influence 5 | 5 5 . . Initial . | . . . . Average . | . . . . Influence Increases 289 | 5 9 275 . Destroy 0b10 Robot/C 160 | . . 160 . Destroy 0b10 Robot/NC 10 | 5 5 . . Destroy Leader 10 | . . 10 . Successful Hack 4 | . 4 . . Lose Combat Pursuer 105 | . . 105 . Influence Decreases 289 | 5 9 98 177 Entered New Map 177 | . . . 177 Time Decay 22 | 5 9 8 . Lost Part 90 | . . 90 . Squads Dispatched . | . . . . Investigation . | . . . . Extermination . | . . . . Reinforcement . | . . . . Assault . | . . . . Garrison . | . . . . Intercept . | . . . . Searches Triggered . | . . . . Construction Impeded . | . . . . Haulers Reinforced . | . . . . Active Scanning Responses . | . . . . Cargo Convoy Interrupts . | . . . . Stealth | -11 -10 -10 -8 --------- Run | Yrd Mat Sub Scr Distress Signals . | . . . . Communications Jammed . | . . . . Distress Signals . | . . . . Times Spotted 58 | . 1 27 30 Peak Tracking Total 8 | . 1 4 8 Tactical Retreats 3 | . . 2 1 Traps | -11 -10 -10 -8 ------- Run | Yrd Mat Sub Scr Traps Triggered . | . . . . Indirectly . | . . . . Trap Hack Attempts . | . . . . Triggered . | . . . . Disarmed . | . . . . Reprogrammed . | . . . . Reused . | . . . . Traps Extracted . | . . . . Installed . | . . . . Triggered . | . . . . Machines | -11 -10 -10 -8 ---------- Run | Yrd Mat Sub Scr Machines Disabled 8 | . . 5 3 Max in Single Turn 3 | . . 3 1 Machines Repaired . | . . . . Machines Dismantled . | . . . . Machines Sabotaged . | . . . . Overloaded Fab Kills . | . . . . Hacking | -11 -10 -10 -8 --------- Run | Yrd Mat Sub Scr Machines Accessed 9 | . 3 2 4 Terminals 2 | . 2 . . Fabricators . | . . . . Repair Stations . | . . . . Recycling Units 1 | . 1 . . Scanalyzers . | . . . . Garrison Access . | . . . . Total Hacks 35 | . 5 6 24 Successful 32 | . 2 6 24 Failed 3 | . 3 . . Catastrophic . | . . . . Database Lockouts . | . . . . Manual 3 | . 3 . . Terminals 3 | . 3 . . Fabricators . | . . . . Repair Stations . | . . . . Recycling Units 2 | . 2 . . Scanalyzers . | . . . . Garrison Access . | . . . . Terminal Hacks 30 | . . 6 24 Record 21 | . . 5 16 Robot Analysis 7 | . . . 7 Proto ID Catalog 2 | . . 1 1 Fabricator Hacks . | . . . . Repair Station Hacks . | . . . . Recycling Unit Hacks 1 | . 1 . . Retrieve Components 1 | . 1 . . Scanalyzer . | . . . . Garrison Access Hacks . | . . . . Unauthorized Hacks 1 | . 1 . . Terminals 1 | . 1 . . Skim 1 | . 1 . . Fabricators . | . . . . Repair Stations . | . . . . Recycling Units . | . . . . Scanalyzers . | . . . . Garrison Access . | . . . . Data Cores Recovered 1 | . 1 . . Used . | . . . . Hacking Detections 2 | . 2 . . Full Trace Events . | . . . . Feedback Events . | . . . . Feedback Blocked . | . . . . Robot Schematics Acquired . | . . . . Robots Built . | . . . . Authchips . | . . . . Time . | . . . . Total Robot Build Rating . | . . . . Part Schematics Acquired . | . . . . Parts Built . | . . . . Authchips . | . . . . Time . | . . . . Total Part Build Rating . | . . . . Part Studies Acquired . | . . . . Parts Repaired . | . . . . Time . | . . . . Parts Recycled . | . . . . Recycled Matter . | . . . . Retrieved Matter . | . . . . Retrieved Components 1 | . 1 . . Parts Scanalyzed . | . . . . Part Schematics Acquired . | . . . . Parts Damaged . | . . . . Bothacking | -11 -10 -10 -8 ------------ Run | Yrd Mat Sub Scr Used RIF Installer . | . . . . Robots Hacked . | . . . . Non-combat . | . . . . Combat . | . . . . Robot Hacks Applied . | . . . . Relay Couplers Released . | . . . . Fabnet Peak Effective % . | . . . . Robots Rewired . | . . . . Allies Hacked . | . . . . Hacks Repelled . | . . . . Allies | -11 -10 -10 -8 -------- Run | Yrd Mat Sub Scr Total Allies . | . . . . Largest Group . | . . . . Highest-Rated Group . | . . . . Highest-Rated Ally . | . . . . Total Orders . | . . . . Ally Attacks . | . . . . Total Damage . | . . . . Kills . | . . . . Allies Corrupted . | . . . . Allies Melted 6 | . . . 6 Intel | -11 -10 -10 -8 ------- Run | Yrd Mat Sub Scr Active Infowar (turns) 4374 | 8 275 2803 1288 Seismic 4374 | 8 275 2803 1288 Robot Analysis Total 7 | . . . 7 Derelict Logs Recovered 6 | . . 1 5 Drone Launches . | . . . . Drone Recoveries . | . . . . Exploration | -11 -10 -10 -8 ------------- Run | Yrd Mat Sub Scr Turns Passed 10943 | 74 275 7618 2976 Spaces Moved 4619 | 40 120 2834 1625 Core 3 | 3 . . . Treads 2948 | 37 120 2791 . Legs 687 | . . . 687 Wheels 981 | . . 43 938 Hover . | . . . . Flight . | . . . . Fastest Speed 50 | 50 160 130 130 Average Speed 212 | 151 223 244 157 Slowest Speed 400 | 160 240 250 400 Overloaded Moves . | . . . . Propulsion Burnouts . | . . . . Robots Hopped . | . . . . Potential Cave-ins . | . . . . Cave-ins Triggered . | . . . . Exploration Rate (%) 53 | 5 26 98 83 Regions Visited 3 Branch Regions 2 Pre-discovered Areas 4 | . . 2 2 Known Exits Taken . | . . . . Unknown Exits Taken 3 | 1 1 1 . Scrap Searched 18 | . . 12 6 Spaces Dug 48 | . . 48 . Terrain Destroyed 179 | . . 177 2 Melee 15 | . . 15 . Projectile 2 | . . . 2 AOE 162 | . . 162 . Terrain Rammed . | . . . . Walls Destroyed . | . . . . Machines Disabled . | . . . . Actions | -11 -10 -10 -8 --------- Run | Yrd Mat Sub Scr Total 5536 | 48 126 3380 1982 Wait 630 | . . 378 252 Move 4616 | 39 119 2833 1625 Hop . | . . . . Pick Up 57 | 1 4 35 17 Fast Attach 15 | 7 . . 8 Attach 16 | . . 9 7 Detach . | . . . . Swap 25 | . 1 17 7 Drop 34 | . 1 17 16 Fire 116 | 1 1 65 49 Melee 26 | . . 25 1 Ram . | . . . . Kick . | . . . . Crush . | . . . . Escape Stasis . | . . . . Rewire 1 | . . 1 . Trap . | . . . . Miscellaneous . | . . . . Route ------- -11/Scrapyard -10/Materials -10/Subcaves (discovered 4 exits: [*Mat x2] / [*Rec] / *Scr) -8/Scraptown (discovered 2 exits: *Fac x2) History --------- Turn | Location | Event 39 | -11/Scrapyard | Discovered new exit (range 15) 75 | -11/Scrapyard | Entered Materials 305 | -10/Materials | Build established: Mutant 328 | -10/Materials | Discovered new exit (range 11) 350 | -10/Materials | Entered Subcaves 351 | -10/Subcaves | Approached by a straggling Scientist 379 | -10/Subcaves | Discovered new exit (range 12) 383 | -10/Subcaves | Shifting Twisted Machinery released Flamer 462 | -10/Subcaves | Shifting Twisted Machinery released Sub. Monowheel 538 | -10/Subcaves | A swath of the cavern ceiling suddenly collapsed 646 | -10/Subcaves | Scientist uncovered a shortcut to Scraptown 1623 | -10/Subcaves | Shifting Twisted Machinery released Riot Gun 1624 | -10/Subcaves | Shifting Twisted Machinery released Lgt. Humpback 1924 | -10/Subcaves | Discovered new exit (range 15) 2023 | -10/Subcaves | Shifting Twisted Machinery released Sub. Power Source 2028 | -10/Subcaves | Shifting Twisted Machinery released Spk. Treads 2067 | -10/Subcaves | A swath of the cavern ceiling suddenly collapsed 2379 | -10/Subcaves | Visited 4L-MR0's lab 2407 | -10/Subcaves | Found Tower Shield 4400 | -10/Subcaves | Learned location of Mines (-10) 4585 | -10/Subcaves | Discovered new exit (range 14) 6374 | -10/Subcaves | Visited Clippyterm 6382 | -10/Subcaves | Learned location of Extension (-6) 6382 | -10/Subcaves | Learned Factory trap positions 6666 | -10/Subcaves | Ambushed by angry Subdweller bent on revenge 7864 | -10/Subcaves | A Subdweller sparked back to life 7864 | -10/Subcaves | A Subdweller sparked back to life 7908 | -10/Subcaves | Lost 6 parts (1p3n1u1w) 7908 | -10/Subcaves | Found Meta Core 7940 | -10/Subcaves | Ambushed by Subdweller buried in earth 7940 | -10/Subcaves | Ambushed by Subdweller buried in earth 7942 | -10/Subcaves | Ambushed by Subdweller buried in earth 7968 | -10/Subcaves | Entered Scraptown 8197 | -8/Scraptown | Scanned Subdweller tech in exchange for log data 8200 | -8/Scraptown | Learned location of Zion (-7) 8201 | -8/Scraptown | Learned 8 Factory zone layouts 8202 | -8/Scraptown | Learned location of Testing (-2) 8205 | -8/Scraptown | Learned Research trap positions 8214 | -8/Scraptown | Build established: Scavenger-Mutant 8217 | -8/Scraptown | Discovered new exit (range 11) 8310 | -8/Scraptown | Visited Red Mages 8338 | -8/Scraptown | Visited Bundlers 8425 | -8/Scraptown | Visited TADAMA 8453 | -8/Scraptown | Visited UFD Registry 8453 | -8/Scraptown | Registered with UFD as "Macebot" 8531 | -8/Scraptown | Visited Botcube Research 8551 | -8/Scraptown | Visited Scrap Suit Storage 8563 | -8/Scraptown | Visited Analyses Database 8591 | -8/Scraptown | Visited Research Penetration Think Tank 8622 | -8/Scraptown | Visited Science Guys 8663 | -8/Scraptown | Visited Curators Association 8704 | -8/Scraptown | Visited Infowarlord's Domain 8712 | -8/Scraptown | Found Exp. Terrain Scanner 8736 | -8/Scraptown | Visited Derelict Rescue Squad 8747 | -8/Scraptown | Found DRS Beacon 8974 | -8/Scraptown | Delivered Scrap Shield to a Scientist 9559 | -8/Scraptown | Build established: Derelict-Mutant 9920 | -8/Scraptown | Found Scrap Suit 10012 | -8/Scraptown | Met Optimus 10012 | -8/Scraptown | Accepted into 0bPrime 10412 | -8/Scraptown | Civil war broke out across Scraptown 10468 | -8/Scraptown | Lost 3 allies 10486 | -8/Scraptown | Identified exit to Factory 10569 | -8/Scraptown | Lost 3 allies 10639 | -8/Scraptown | Lost 4 allies 10669 | -8/Scraptown | Core integrity fell below 50% 10705 | -8/Scraptown | Optimus destroyed in the chaos of civil war 10741 | -8/Scraptown | Lost 5 allies 10749 | -8/Scraptown | Attached Meta Core, gained temporary slots: Propulsion, Utility, Weapon 10752 | -8/Scraptown | Lost 4 parts (1n1u2w) 10752 | -8/Scraptown | Found Scrap Suit 10932 | -8/Scraptown | Core integrity fell below 20% 10944 | -8/Scraptown | Destroyed by 85-OXE(g) with Beamcaster Last Messages --------------- 10931_ Penetrated by Bolt. 10932_ Ovr. Titanium Leg destroyed. 10933_ Temporary Propulsion slot lost. 10933_ 6Q-QEM(j) overheating. 10934_ Penetrated by Bolt. 10934_ Acquired 69 matter. 10934_ Scrap Suit destroyed. 10934_ 6Q-QEM(j) overheating. 10936_ Temporary Utility slot lost. 10936_ Bolt penetrates Wall. 10936_ Ovr. Pulse Rifle destroyed. 10937_ 6Q-QEM(j) overheating. 10938_ 6Q-QEM(j) heat damages Ovr. Titanium Leg, Ovr. Pulse Rifle, Lgt. Deuterium Engine, Scrap Suit. 10938_ Temporary Weapon slot lost. 10939_ Titanium Leg destroyed. 10941_ Overheating: Ovr. Barrage Gun damaged (-18). 10943_ Bolt penetrates Wall. Map ----- +----------------------------------------------------+ | ?????????????????????????????????????????????????? | | ?????????????????????????????????????????????????? | | ?????????????????????????????????????????????????? | | ?????????????????????????????????????????????????? | | ?????????????????????????????????????????????????? | | ?????????????????????????????????????????????????? | | ?????????????????????????????????????????????????? | | ?????????????????????????????????????????????????? | | ??????????????????????????????????